[Event "European Women-ch 2023"]
[Site "Petrovac"]
[Date "2023.03.21"]
[Round "4.25"]
[White "Kostina, Veronika"]
[Black "Saraci, Rinesa"]
[Result "1/2-1/2"]
[ECO "A13"]
[WhiteElo "1855"]
[BlackElo "1503"]
[Annotator "NA RC COMBH"]
[PlyCount "121"]
[EventDate "2023.03.15"]
[EventType "swiss"]
[EventCountry "MNE"]
[SourceTitle "playchess.com"]
[Source "ChessBase"]
[SourceQuality "1"]
[TimeControl "40/5400+30:1800+30"]

1. Nf3 {[%emt 0:00:03]} d5 {[%emt 0:00:11]} 2. e3 {[%emt 0:00:16]} Nf6 {[%emt 0:00:16]} 3. c4 {[%emt 0:00:14]} e6 {[%emt 0:00:26]} 4. b3 {[%emt 0:00:20]} Be7 {[%emt 0:00:36]} 5. Bb2 {[%emt 0:00:23]} O-O {[%emt 0:01:58]} 6. Be2 {[%emt 0:00:28]} c5 {[%emt 0:02:22]} 7. O-O {[%emt 0:00:22]} Nc6 {[%emt 0:02:57]} 8. cxd5 {[%emt 0:00:15]} Nxd5 {[%emt 0:02:09]} 9. Nc3 {[%emt 0:02:27]} Nxc3 {[%emt 0:05:39]} 10. Bxc3 {[%emt 0:01:35]} b6 {[%emt 0:01:30]} 11. Qc2 {[%emt 0:03:49]} Bb7 {[%emt 0:02:32]} 12. Rfd1 {[%emt 0:02:13]} Rc8 {[%emt 0:02:43]} 13. Qb2 {[%emt 0:02:58]} Bf6 {[%emt 0:10:49]} 14. Bxf6 {[%emt 0:02:19]} Qxf6 {[%emt 0:00:11]} 15. Qxf6 {[%emt 0:00:31]} gxf6 {[%emt 0:00:06]} 16. d4 {[%emt 0:01:43]} cxd4 {[%emt 0:03:43]} 17. Nxd4 {[%emt 0:01:11]} Nxd4 {[%emt 0:04:47]} 18. Rxd4 {[%emt 0:01:17]} Rfd8 {[%emt 0:03:34]} 19. Rxd8+ {[%emt 0:01:06]} Rxd8 {[%emt 0:00:07]} 20. Rd1 {[%emt 0:00:59]} Rc8 {[%emt 0:09:52]} 21. Bc4 {[%emt 0:02:42]} Bd5 {[%emt 0:01:43]} 22. Bxd5 {[%emt 0:10:30]} exd5 {[%emt 0:00:08]} 23. Kf1 {[%emt 0:02:08]} Rc2 {[%emt 0:01:51]} 24. a4 {[%emt 0:01:17]} Rb2 {[%emt 0:01:05]} 25. Rxd5 {[%emt 0:12:59]} Rxb3 {[%emt 0:00:28]} 26. Ke2 {[%emt 0:01:10]} Rb2+ {[%emt 0:04:00]} 27. Kf3 {[%emt 0:01:32]} a5 {[%emt 0:01:06]} 28. g4 {[%emt 0:05:30]} Rb4 {[%emt 0:01:10]} 29. Rd4 {[%emt 0:00:38]} Rb2 {[%emt 0:02:20]} 30. h4 {[%emt 0:02:28]} h6 {[%emt 0:02:45]} 31. Kg3 {[%emt 0:01:35]} Rb4 {[%emt 0:01:58]} 32. Kf4 {[%emt 0:03:59]} Rb2 {[%emt 0:03:18]} 33. f3 {[%emt 0:00:40]} Kg7 {[%emt 0:00:39]} 34. Ke4 {[%emt 0:05:08]} Rb3 {[%emt 0:02:02]} 35. f4 {[%emt 0:03:40]} b5 {[%emt 0:06:49]} 36. axb5 {[%emt 0:01:11]} Rxb5 {[%emt 0:00:05]} 37. Ra4 {[%emt 0:00:51]} h5 {[%emt 0:03:10]} 38. Kf3 {[%emt 0:02:02]} hxg4+ {[%emt 0:04:08]} 39. Kxg4 {[%emt 0:00:12]} Kg6 {[%emt 0:01:20]} 40. e4 {[%emt 0:00:00]} f5+ {[%emt 0:00:00]} 41. exf5+ {[%emt 0:07:37]} Rxf5 {[%emt 0:04:58]} 42. Ra1 {[%emt 0:08:11]} Rb5 {[%emt 0:01:48]} 43. Ra3 {[%emt 0:01:33]} f5+ {[%emt 0:04:52]} 44. Kg3 {[%emt 0:04:38]} Kh5 {[%emt 0:00:46]} 45. Kh3 {[%emt 0:00:25]} a4 {[%emt 0:04:11]} 46. Rxa4 {[%emt 0:00:32]} Rb3+ {[%emt 0:00:06]} 47. Kg2 {[%emt 0:03:29]} Kxh4 {[%emt 0:00:08]} 48. Rd4 {[%emt 0:00:27]} Kg4 {[%emt 0:00:37]} 49. Ra4 {[%emt 0:00:45]} Rf3 {[%emt 0:01:24]} 50. Ra8 {[%emt 0:01:56]} Rxf4 {[%emt 0:01:51]} 51. Rg8+ {[%emt 0:00:43]} Kh5 {[%emt 0:01:04]} 52. Kg3 {[%emt 0:00:46]} Rg4+ {[%emt 0:03:23]} 53. Rxg4 {[%emt 0:00:10]} fxg4 {[%emt 0:00:05]} 54. Kg2 {[%emt 0:00:11]} Kh4 {[%emt 0:01:21]} 55. Kh2 {[%emt 0:00:05]} g3+ {[%emt 0:01:46]} 56. Kg2 {[%emt 0:00:04]} Kg4 {[%emt 0:00:07]} 57. Kg1 {[%emt 0:00:28]} Kf5 {[%emt 0:02:40]} 58. Kg2 {[%emt 0:00:08]} Kf4 {[%emt 0:00:42]} 59. Kg1 {[%emt 0:00:16]} Kf3 {[%emt 0:00:54]} 60. Kf1 {[%emt 0:00:09]} g2+ {[%emt 0:01:21]} 61. Kg1 {[%emt 0:00:05]} 1/2-1/2

[Event "European Women-ch 2023"]
[Site "Petrovac"]
[Date "2023.03.21"]
[Round "4.26"]
[White "Calzetta Ruiz, Monica"]
[Black "Golsta, Ramona"]
[Result "1/2-1/2"]
[ECO "B30"]
[WhiteElo "2185"]
[BlackElo "1760"]
[Annotator "TA"]
[PlyCount "110"]
[EventDate "2023.03.15"]
[EventType "swiss"]
[EventCountry "MNE"]
[SourceTitle "playchess.com"]
[Source "ChessBase"]
[SourceQuality "1"]
[TimeControl "40/5400+30:1800+30"]

{[%evp 9,110,20,25,-19,-19,-17,-4,-16,10,-23,-23,-19,-16,-28,0,-6,17,0,12,-12,-27,-37,41,24,33,-3,-13,-3,0,-18,31,-12,-13,-14,47,46,40,45,36,34,69,64,191,56,68,1,4,0,0,0,0,0,0,0,0,0,0,0,0,0,0,0,0,0,0,0,0,0,0,0,0,0,0,0,0,0,0,0,0,0,0,0,0,0,0,0,0,0,0,0,0,0,0,0,0,0,0,0,0,0,0,0,0]} 1. e4 {[%emt 0:01:54]} c5 {[%emt 0:00:05]} 2. Nf3 {[%emt 0:00:13]} Nc6 {[%emt 0:00:05]} 3. Nc3 {[%emt 0:00:08]} e5 {[%emt 0:00:06]} 4. Bc4 {[%emt 0:00:05]} Be7 {[%emt 0:00:09]} 5. d3 {[%emt 0:00:09]} d6 {[%emt 0:00:36]} 6. h4 {[%emt 0:04:23] B30: Sicilian: 2...Nc6 3 Bb5, lines without ...g6.} h6 {[%emt 0:18:25]} 7. Nd5 {[%emt 0:02:02]} Nf6 {[%emt 0:04:27][%cal Bg8f6,Bf6h7,Bh7g5][%mdl 32]} 8. c3 {[%emt 0:00:58]} O-O {[%emt 0:08:09]} 9. h5 {[%emt 0:13:55]} Bg4 {[%emt 0:17:36]} 10. Ne3 {[%emt 0:02:35]} Be6 {[%emt 0:05:18]} 11. Bd5 {[%emt 0:25:17] [#]} Nh7 $146 {[%emt 0:06:35]} ({Predecessor:} 11... Qd7 12. Nh4 Bd8 13. Nhf5 Ne7 14. Nxe7+ Bxe7 15. Bxe6 fxe6 16. Ng4 Kh8 17. a4 Rf7 {1-0 Lomasov,S (2525)-Praggnanandhaa,R (2608) Titled Tuesday intern op 02nd Mar blitz 2021 (9)}) 12. O-O {[%emt 0:04:31]} Ng5 {[%emt 0:03:12]} 13. Nh2 {[%emt 0:06:16]} Qd7 {[%emt 0:09:46]} 14. f4 {[%emt 0:08:50]} exf4 {[%emt 0:03:13]} 15. Rxf4 {[%emt 0:00:08]} Bf6 {[%emt 0:01:18]} (15... Nh7 $15) 16. Nhg4 {[%emt 0:08:30] [#] aiming for Rxf6.} Be5 {[%emt 0:03:45]} 17. Nxe5 {[%emt 0:02:22]} (17. Rf1 {looks sharper.} Rae8 18. Bb3 Ne7 19. Bxe6 Qxe6 20. Nf5) 17... dxe5 {[%emt 0:00:29]} 18. Rf2 {[%emt 0:00:56]} Ne7 {[%emt 0:03:19]} 19. c4 {[%emt 0:08:22] [#]} f5 {[%emt 0:01:15]} 20. exf5 {[%emt 0:04:26][%mdl 64] Pin} (20. Bxe6+ {keeps more tension.} Nxe6 21. Nxf5 Rad8 22. Qg4) 20... Bxd5 {[%emt 0:00:08]} 21. cxd5 {[%emt 0:00:13]} Nxd5 {[%emt 0:03:13]} (21... Nxf5 $2 22. Qg4 $18) (21... Rad8 $11) 22. Nxd5 $14 {[%emt 0:02:14]} Qxd5 {[%emt 0:00:02]} 23. Bxg5 {[%emt 0:00:11]} hxg5 {[%emt 0:00:09]} 24. Qg4 {[%emt 0:00:06]} Qd8 {[%emt 0:03:07]} 25. Re1 {[%emt 0:00:27] White is more active.} Qd4 {[%emt 0:01:44]} (25... Qe7 $14) 26. Re4 {[%emt 0:00:44]} (26. Qxg5 $18 {Threatens to win with h6.} Qd8 27. Qg3) 26... Qxd3 {[%emt 0:00:57]} 27. Rxe5 {[%emt 0:00:10]} (27. Re1 $14) 27... Rae8 $11 {[%emt 0:01:11] The position is equal.} 28. Rxe8 {[%emt 0:00:50]} (28. Qe2 {simplifies} Qxe2 29. Rfxe2 Rxe5 30. Rxe5 b6 31. Kf2) 28... Rxe8 {[%emt 0:00:02]} 29. Qxg5 {[%emt 0:00:24][%mdl 4096] Endgame KQR-KQR} Re1+ {[%emt 0:01:29]} 30. Kh2 {[%emt 0:00:03] Hoping for f6.} Qd6+ {[%emt 0:00:28]} 31. Qf4 {[%emt 0:00:38]} Qxf4+ {[%emt 0:00:43]} 32. Rxf4 {[%emt 0:00:02] KR-KR} Re2 {[%emt 0:00:20]} 33. b4 {[%emt 0:00:37]} Rxa2 {[%emt 0:00:39] ...Ra4 would be deadly.} 34. bxc5 {[%emt 0:00:02]} Rc2 {[%emt 0:00:08] Prevents Rc4} 35. Rb4 {[%emt 0:01:16]} Rxc5 {[%emt 0:00:25]} 36. Rxb7 {[%emt 0:00:08]} Rxf5 {[%emt 0:00:18]} 37. g4 {[%emt 0:02:18]} Rf7 {[%emt 0:01:45][%cal Bf5f7,Bf7a7,Ba7a8,Ba8f8,Bf8f1,Bf1g1][%mdl 32]} 38. Rb5 {[%emt 0:00:23]} a6 {[%emt 0:02:44]} 39. Ra5 {[%emt 0:00:13]} Ra7 {[%emt 0:00:18]} 40. Kg3 {[%emt 0:00:00]} Kh7 {[%emt 0:00:00]} 41. g5 {[%emt 0:03:17]} Ra8 {[%emt 0:05:36]} 42. Kf4 {[%emt 0:02:23]} Rf8+ {[%emt 0:03:54]} 43. Kg4 {[%emt 0:00:28]} Rf1 {[%emt 0:08:15]} 44. Rxa6 {[%emt 0:01:38]} Rg1+ {[%emt 0:00:20]} 45. Kf5 {[%emt 0:00:09]} Rf1+ {[%emt 0:00:14]} 46. Ke6 {[%emt 0:05:33]} Rh1 {[%emt 0:02:39]} 47. Kf7 {[%emt 0:04:11][%cal Oa6h6] White wants to mate with Rh6+!} Rf1+ {[%emt 0:01:10]} 48. Ke7 {[%emt 0:00:37]} Rh1 {[%emt 0:01:55]} 49. Rg6 {[%emt 0:11:00]} Re1+ {[%emt 0:02:43]} 50. Re6 {[%emt 0:00:08]} Rh1 {[%emt 0:01:25]} 51. Kf7 {[%emt 0:01:24][%cal Oe6h6] Intending Rh6+! and mate.} Rf1+ {[%emt 0:00:19]} 52. Ke7 {[%emt 0:00:39]} Rh1 {[%emt 0:00:12]} 53. h6 {[%emt 0:02:21]} gxh6 {[%emt 0:00:58]} 54. Rxh6+ {[%emt 0:00:48]} Rxh6 {[%emt 0:00:06]} 55. gxh6 {[%emt 0:00:05]} Kxh6 {[%emt 0:00:02] Weighted Error Value: White=0.15 (very precise) /Black=0.13 (very precise)} 1/2-1/2

[Event "European Women-ch 2023"]
[Site "Petrovac"]
[Date "2023.03.21"]
[Round "4.26"]
[White "Popovic, Mateja"]
[Black "Recica, Jona"]
[Result "1-0"]
[ECO "D10"]
[WhiteElo "1832"]
[BlackElo "1231"]
[Annotator "NA RC COMBH"]
[PlyCount "163"]
[EventDate "2023.03.15"]
[EventType "swiss"]
[EventCountry "MNE"]
[SourceTitle "playchess.com"]
[Source "ChessBase"]
[SourceQuality "1"]
[TimeControl "40/5400+30:1800+30"]

1. d4 {[%emt 0:00:02]} d5 {[%emt 0:00:08]} 2. c4 {[%emt 0:00:09]} c6 {[%emt 0:00:21]} 3. Nc3 {[%emt 0:00:10]} Nf6 {[%emt 0:00:34]} 4. cxd5 {[%emt 0:00:16]} cxd5 {[%emt 0:00:42]} 5. Bf4 {[%emt 0:00:22]} Nc6 {[%emt 0:00:58]} 6. e3 {[%emt 0:01:02]} Bf5 {[%emt 0:00:54]} 7. Qb3 {[%emt 0:04:51]} Na5 {[%emt 0:03:12]} 8. Qa4+ {[%emt 0:01:00]} Bd7 {[%emt 0:00:53]} 9. Qc2 {[%emt 0:08:26]} a6 {[%emt 0:04:09]} 10. Bd3 {[%emt 0:02:46]} e6 {[%emt 0:01:56]} 11. Nf3 {[%emt 0:00:28]} Be7 {[%emt 0:00:36]} 12. O-O {[%emt 0:06:37]} O-O {[%emt 0:01:59]} 13. Ne5 {[%emt 0:08:02]} b5 {[%emt 0:02:27]} 14. b3 {[%emt 0:06:33]} Rc8 {[%emt 0:02:46]} 15. Qb2 {[%emt 0:04:08]} Nh5 {[%emt 0:07:26]} 16. Bg3 {[%emt 0:04:57]} Nxg3 {[%emt 0:05:59]} 17. hxg3 {[%emt 0:00:41]} f6 {[%emt 0:01:15]} 18. Nxd7 {[%emt 0:03:14]} Qxd7 {[%emt 0:00:16]} 19. a4 {[%emt 0:03:47]} b4 {[%emt 0:14:17]} 20. Ne2 {[%emt 0:01:05]} Qd6 {[%emt 0:01:23]} 21. Rfd1 {[%emt 0:06:51]} Nb7 {[%emt 0:02:44]} 22. Nf4 {[%emt 0:06:52]} a5 {[%emt 0:04:45]} 23. e4 {[%emt 0:04:38]} Kh8 {[%emt 0:09:43]} 24. e5 {[%emt 0:05:29]} Qb6 {[%emt 0:01:27]} 25. Rac1 {[%emt 0:07:57]} fxe5 {[%emt 0:03:04]} 26. dxe5 {[%emt 0:00:06]} Nc5 {[%emt 0:01:00]} 27. Bb1 {[%emt 0:05:44]} Ne4 {[%emt 0:10:18]} 28. Bxe4 {[%emt 0:01:46]} Rxc1 {[%emt 0:00:13]} 29. Qxc1 {[%emt 0:01:11]} dxe4 {[%emt 0:00:13]} 30. Qc4 {[%emt 0:00:19]} g5 {[%emt 0:01:29]} 31. Qxe6 {[%emt 0:01:02]} Qa7 {[%emt 0:01:15]} 32. Rd7 {[%emt 0:00:49]} Qc5 {[%emt 0:00:57]} 33. Qxe7 {[%emt 0:00:57]} Qxe7 {[%emt 0:00:33]} 34. Rxe7 {[%emt 0:00:05]} gxf4 {[%emt 0:00:06]} 35. gxf4 {[%emt 0:00:05]} Rxf4 {[%emt 0:00:44]} 36. Ra7 {[%emt 0:00:10]} e3 {[%emt 0:00:38]} 37. fxe3 {[%emt 0:00:56]} Re4 {[%emt 0:00:11]} 38. Rxa5 {[%emt 0:00:42]} Rxe3 {[%emt 0:00:19]} 39. Rb5 {[%emt 0:00:10]} Rxb3 {[%emt 0:00:35]} 40. e6 {[%emt 0:00:00]} Re3 {[%emt 0:00:00]} 41. Rxb4 {[%emt 0:03:39]} Rxe6 {[%emt 0:00:26]} 42. a5 {[%emt 0:00:04]} Ra6 {[%emt 0:00:12]} 43. Ra4 {[%emt 0:00:04]} Kg7 {[%emt 0:00:08]} 44. Kf2 {[%emt 0:00:26]} h5 {[%emt 0:00:37]} 45. Ke3 {[%emt 0:00:17]} Kf6 {[%emt 0:02:58]} 46. Kd4 {[%emt 0:01:09]} Ke6 {[%emt 0:02:23]} 47. Kc5 {[%emt 0:01:28]} Kd7 {[%emt 0:00:19]} 48. Kb5 {[%emt 0:01:11]} Rg6 {[%emt 0:00:16]} 49. Ra2 {[%emt 0:00:15]} Kc7 {[%emt 0:00:16]} 50. a6 {[%emt 0:06:03]} Kb8 {[%emt 0:00:47]} 51. Kc5 {[%emt 0:12:21]} Ka7 {[%emt 0:00:36]} 52. Kd5 {[%emt 0:00:04]} Rf6 {[%emt 0:01:44]} 53. Ke5 {[%emt 0:00:20]} Rg6 {[%emt 0:00:41]} 54. Kf4 {[%emt 0:00:20]} Rg8 {[%emt 0:01:53]} 55. Kf3 {[%emt 0:01:25]} Rg5 {[%emt 0:00:38]} 56. Kf2 {[%emt 0:01:15]} Rc5 {[%emt 0:05:12]} 57. Kg3 {[%emt 0:01:04]} Rd5 {[%emt 0:00:09]} 58. Kh4 {[%emt 0:00:08]} Rc5 {[%emt 0:00:35]} 59. Ra3 {[%emt 0:00:36]} Rd5 {[%emt 0:00:23]} 60. Rg3 {[%emt 0:00:11]} Kxa6 {[%emt 0:01:26]} 61. Rg5 {[%emt 0:00:06]} Rd8 {[%emt 0:00:40]} 62. Kxh5 {[%emt 0:00:17]} Rh8+ {[%emt 0:00:14]} 63. Kg4 {[%emt 0:00:33]} Kb6 {[%emt 0:00:36]} 64. Rd5 {[%emt 0:01:31]} Kc6 {[%emt 0:00:47]} 65. Rd3 {[%emt 0:00:09]} Rg8+ {[%emt 0:00:30]} 66. Kh3 {[%emt 0:00:11]} Rh8+ {[%emt 0:00:10]} 67. Kg3 {[%emt 0:00:04]} Rg8+ {[%emt 0:00:08]} 68. Kh2 {[%emt 0:00:09]} Rh8+ {[%emt 0:00:10]} 69. Kg1 {[%emt 0:00:04]} Rf8 {[%emt 0:00:22]} 70. g3 {[%emt 0:00:09]} Rf5 {[%emt 0:00:29]} 71. Kg2 {[%emt 0:00:25]} Rd5 {[%emt 0:01:46]} 72. Rf3 {[%emt 0:00:44]} Kd6 {[%emt 0:02:27]} 73. g4 {[%emt 0:00:05]} Rg5 {[%emt 0:00:13]} 74. Kg3 {[%emt 0:00:08]} Ke6 {[%emt 0:01:30]} 75. Kh4 {[%emt 0:00:11]} Rg7 {[%emt 0:00:23]} 76. Kh5 {[%emt 0:00:35]} Rf7 {[%emt 0:00:43]} 77. Re3+ {[%emt 0:00:31]} Kf6 {[%emt 0:00:09]} 78. Kh6 {[%emt 0:00:15]} Rf8 {[%emt 0:00:57]} 79. g5+ {[%emt 0:00:22]} Kf7 {[%emt 0:00:13]} 80. Rf3+ {[%emt 0:00:15]} Kg8 {[%emt 0:00:08]} 81. Rxf8+ {[%emt 0:00:04]} Kxf8 {[%emt 0:00:10]} 82. Kh7 {[%emt 0:00:04]} 1-0

[Event "European Women-ch 2023"]
[Site "Petrovac"]
[Date "2023.03.21"]
[Round "4.27"]
[White "Berke, Ana"]
[Black "Kulon, Klaudia"]
[Result "1/2-1/2"]
[ECO "B31"]
[WhiteElo "2107"]
[BlackElo "2290"]
[Annotator "TA"]
[PlyCount "94"]
[EventDate "2023.03.15"]
[EventType "swiss"]
[EventCountry "MNE"]
[SourceTitle "playchess.com"]
[Source "ChessBase"]
[SourceQuality "1"]
[TimeControl "40/5400+30:1800+30"]

{[%evp 12,94,27,5,17,0,18,0,-4,0,20,25,19,0,48,47,50,56,47,50,55,57,41,50,75,70,69,72,83,49,54,9,68,68,69,16,12,15,10,27,16,0,0,0,0,0,0,0,0,0,0,0,0,0,0,-8,0,0,0,0,0,0,0,0,0,0,0,0,0,0,3,0,0,0,0,0,0,0,0,0,0,0,0,0,0]} 1. e4 {[%emt 0:00:07]} c5 {[%emt 0:00:06]} 2. Nf3 {[%emt 0:00:24]} Nc6 {[%emt 0:00:05]} 3. Bb5 {[%emt 0:00:08]} g6 {[%emt 0:00:09]} 4. O-O {[%emt 0:00:24]} Bg7 {[%emt 0:00:05]} 5. c3 {[%emt 0:00:07]} Nf6 {[%emt 0:00:26]} 6. Re1 {[%emt 0:00:54]} O-O {[%emt 0:00:27]} 7. d4 {[%emt 0:00:32]} a6 {[%emt 0:00:25] 7...d5 is setting a new trend. B31: Sicilian: 2...Nc6 3 Bb5 g6.} 8. Ba4 {[%emt 0:06:22]} b5 {[%emt 0:03:19]} 9. Bc2 {[%emt 0:01:37]} (9. e5 $5 {[%cal Re5f6]} bxa4 10. exf6 exf6 11. dxc5 $14) 9... cxd4 {[%emt 0:03:22]} 10. cxd4 {[%emt 0:00:32]} d5 {[%emt 0:05:34]} (10... d6 $5 {[%cal Rc8g4]}) 11. e5 {[%emt 0:03:31] [#]} Ne4 $146 {[%emt 0:00:41]} ({Predecessor:} 11... Ng4 12. Nc3 Nh6 13. h3 Na5 14. Nxd5 Bb7 15. Nc3 e6 16. Be4 Bxe4 17. Rxe4 Nf5 {½-½ Strzelczyk,P (1734)-Normann,O (1969) Liberec op 2007 (3)}) 12. Nc3 {[%emt 0:04:51]} Bf5 {[%emt 0:04:44]} (12... Nxc3 $11 13. bxc3 Bd7) 13. Nxe4 $14 {[%emt 0:03:40]} dxe4 {[%emt 0:00:20]} 14. Bxe4 {[%emt 0:01:27]} Bxe4 {[%emt 0:00:06]} 15. Rxe4 {[%emt 0:00:05]} Qd5 {[%emt 0:00:34]} 16. Re1 {[%emt 0:01:59]} Rfd8 {[%emt 0:00:38][%cal Oc6e5]} 17. Be3 {[%emt 0:01:37]} Rac8 {[%emt 0:01:41]} 18. Qb3 {[%emt 0:07:56]} Qxb3 {[%emt 0:07:35]} 19. axb3 {[%emt 0:00:07]} Nb4 {[%emt 0:00:03]} 20. Red1 {[%emt 0:07:06]} f6 {[%emt 0:00:54]} 21. h4 {[%emt 0:04:05]} fxe5 {[%emt 0:03:53]} (21... Nc2 $1 $11) 22. dxe5 {[%emt 0:02:24]} Nc2 {[%emt 0:06:12]} 23. Rxd8+ {[%emt 0:03:40]} ({Better is} 23. Bb6 $1 $14) 23... Rxd8 $11 {[%emt 0:00:02]} 24. Rxa6 {[%emt 0:01:28]} Nxe3 {[%emt 0:00:20]} 25. fxe3 $14 {[%emt 0:00:37][%mdl 4096] Endgame KRB-KRN} Bh6 $1 {[%emt 0:00:32]} 26. Kf2 {[%emt 0:06:04] [#] Hoping for Ke2. The position is equal.} Rd3 {[%emt 0:01:31][%csl LRb3,LRe3]} 27. Ng5 {[%emt 0:02:02]} Bxg5 {[%emt 0:03:56]} 28. hxg5 $11 {[%emt 0:00:15] KR-KR} Rd5 {[%emt 0:00:29]} 29. Kf3 {[%emt 0:01:49]} Rxe5 {[%emt 0:00:09]} 30. Kf4 {[%emt 0:01:02]} Rf5+ {[%emt 0:00:18]} 31. Kg4 {[%emt 0:00:28]} Rf2 {[%emt 0:00:36]} 32. Rb6 {[%emt 0:00:41]} Rxg2+ {[%emt 0:00:32]} 33. Kf4 {[%emt 0:02:15]} Rf2+ {[%emt 0:04:40]} 34. Kg4 {[%emt 0:01:34]} Rf5 {[%emt 0:01:42]} 35. e4 {[%emt 0:00:43]} Rc5 {[%emt 0:00:44][%cal Bf5c5,Bc5c2,Bc2b2,Bb2b1,Bb1d1,Bd1d4,Bd4c4,Bc4e4][%mdl 32]} 36. Kf4 {[%emt 0:01:34]} Kf7 {[%emt 0:05:15]} 37. b4 {[%emt 0:03:15]} Rc2 {[%emt 0:00:04]} 38. Rxb5 {[%emt 0:00:50]} Rxb2 {[%emt 0:00:03]} 39. Ke5 {[%emt 0:05:24]} Rb1 {[%emt 0:00:26]} 40. Kd5 {[%emt 0:00:00]} Rd1+ {[%emt 0:00:00]} 41. Kc6 {[%emt 0:04:28]} Rd4 {[%emt 0:03:28]} 42. Rb8 {[%emt 0:03:47] [#] And now b5 would win.} Ke6 {[%emt 0:03:28]} 43. b5 {[%emt 0:06:07]} Rc4+ {[%emt 0:00:21]} 44. Kb7 {[%emt 0:04:20]} Rxe4 {[%emt 0:00:18]} 45. b6 {[%emt 0:02:32] aiming for Ra8.} Kf5 {[%emt 0:00:14]} 46. Rh8 {[%emt 0:01:37] Strongly threatening Kc6.} Kxg5 {[%emt 0:00:18]} 47. Rxh7 {[%emt 0:02:52]} e5 {[%emt 0:01:03] Weighted Error Value: White=0.08 (flawless) /Black=0.06 (flawless)} 1/2-1/2

[Event "European Women-ch 2023"]
[Site "Petrovac"]
[Date "2023.03.21"]
[Round "4.28"]
[White "Abdinova, Narmin"]
[Black "Eric, Jovana"]
[Result "1/2-1/2"]
[ECO "E11"]
[WhiteElo "2090"]
[BlackElo "2230"]
[Annotator "TA"]
[PlyCount "68"]
[EventDate "2023.03.15"]
[EventType "swiss"]
[EventCountry "MNE"]
[SourceTitle "playchess.com"]
[Source "ChessBase"]
[SourceQuality "1"]
[TimeControl "40/5400+30:1800+30"]

{[%evp 10,68,40,37,27,13,20,22,31,23,58,53,48,30,36,35,34,20,42,43,54,20,34,13,26,35,38,27,28,15,46,45,47,19,16,18,23,27,51,5,12,14,8,7,4,0,3,0,0,0,0,-15,0,-16,-6,-30,0,0,13,13,14]} 1. d4 {[%emt 0:02:55]} Nf6 {[%emt 0:00:13]} 2. c4 {[%emt 0:00:21]} e6 {[%emt 0:00:12]} 3. g3 {[%emt 0:00:32]} Bb4+ {[%emt 0:00:27]} 4. Bd2 {[%emt 0:00:30]} Qe7 {[%emt 0:01:03]} 5. Bg2 {[%emt 0:01:10]} O-O {[%emt 0:00:33]} 6. Nf3 {[%emt 0:00:10]} Bxd2+ {[%emt 0:01:17] E11: Bogo-Indian.} 7. Nfxd2 {[%emt 0:01:39]} Nc6 {[%emt 0:02:10]} 8. e3 {[%emt 0:01:30]} e5 {[%emt 0:04:18]} 9. d5 {[%emt 0:02:26]} Nb4 {[%emt 0:00:22]} 10. O-O {[%emt 0:00:43]} a5 {[%emt 0:01:02]} 11. Nc3 {[%emt 0:01:06]} (11. Nb3 $5 {[%cal Ra2a3]}) 11... d6 {[%emt 0:00:27]} 12. a3 {[%emt 0:00:16]} Na6 {[%emt 0:03:42] [#]} 13. b4 $1 {[%emt 0:01:48]} Bg4 {[%emt 0:01:58]} (13... Bf5 14. Qa4) 14. Qb3 {[%emt 0:03:18] [#]} Qd7 $146 {[%emt 0:08:01]} ({Predecessor:} 14... Rfb8 15. c5 axb4 16. axb4 dxc5 17. b5 Nb4 18. Qc4 Bf5 19. Nde4 Bxe4 20. Bxe4 Rxa1 21. Rxa1 {0-1 Lekic,D (2425)-Gouloutis,N (2218) Anogia op 4th 2015 (3)}) 15. Rac1 {[%emt 0:18:48]} (15. bxa5 Nc5 16. Qc2 Rxa5 $11) 15... Bh3 {[%emt 0:03:33]} 16. Rfd1 {[%emt 0:10:34]} (16. bxa5 Nc5 17. Qc2 Rxa5 $15) (16. Nde4 {simplifies} Nxe4 17. Bxh3 Qxh3 18. Nxe4 Qf5 19. f3) 16... Bxg2 {[%emt 0:01:55]} (16... h5 {simplifies} 17. f3 Rfb8 18. Nce4 Nxe4 19. Nxe4 Bf5) 17. Kxg2 {[%emt 0:00:03]} Qf5 {[%emt 0:11:43]} 18. Qb1 {[%emt 0:05:16]} ({But not} 18. bxa5 Nc5 19. Qc2 Qxc2 20. Rxc2 Rxa5 $15) 18... Qh5 {[%emt 0:06:56]} 19. h3 {[%emt 0:03:22]} ({Much worse is} 19. bxa5 Nc5 $15) (19. c5 {is more complex.} axb4 20. axb4 dxc5 21. bxc5 Nxc5 22. Nce4) 19... axb4 {[%emt 0:01:08]} 20. axb4 {[%emt 0:00:20]} Nd7 {[%emt 0:00:10]} 21. g4 {[%emt 0:07:10]} Qh6 {[%emt 0:03:24][%cal Of7f5]} 22. Qf5 {[%emt 0:06:13] Black is weak on the light squares} Rad8 {[%emt 0:01:53]} 23. g5 {[%emt 0:07:11]} Qh5 {[%emt 0:00:33]} 24. Nce4 {[%emt 0:02:18]} (24. Nde4 $14) 24... Nxb4 $11 {[%emt 0:20:00]} 25. Ng3 {[%emt 0:02:38]} Qg6 {[%emt 0:00:24]} 26. Rb1 {[%emt 0:00:28] [#] Threatens to win with Qxg6.} Na6 $132 {[%emt 0:01:10][%mdl 2048] Black is fighting back} (26... Qxf5 {simplifies} 27. Nxf5 Na6 28. Ne7+ Kh8) 27. Rxb7 {[%emt 0:01:22]} Ndc5 {[%emt 0:00:09] Repels Nde4} 28. Rbb1 {[%emt 0:01:58]} f6 {[%emt 0:00:36]} 29. Qxg6 {[%emt 0:01:49]} hxg6 {[%emt 0:00:07]} 30. f3 {[%emt 0:02:05]} Rb8 {[%emt 0:05:16]} 31. Nge4 {[%emt 0:01:46][%cal Bg3e4,Be4c3,Bc3b5][%mdl 32]} f5 {[%emt 0:02:17]} 32. Nc3 {[%emt 0:03:52]} Kf7 {[%emt 0:03:26]} (32... Nb4 $5) 33. Nb5 {[%emt 0:00:25]} Rb7 {[%emt 0:02:11]} 34. Nb3 {[%emt 0:00:58]} Nxb3 {[%emt 0:05:31] Weighted Error Value: White=0.09 (flawless) /Black=0.08 (flawless)} 1/2-1/2